[Event "UK Open Blitz Championships 2024 - London Qualifier"]
[Site "London, United Kingdom"]
[Date "2024.09.21"]
[Round "8.1"]
[White "Kirk, Ezra"]
[Black "Royal, Shreyas"]
[Result "0-1"]
[TimeControl "3 minutes + 2 seconds incr. from move 1"]
[WhiteTitle "IM"]
[BlackTitle "IM"]
[WhiteFideId "600067"]
[BlackFideId "448869"]
[WhiteElo "2219"]
[BlackElo "2331"]

1. e4 {[%clk 00:03:02]} {[%emt 00:00:02]} e5 {[%clk 00:03:04]} 2. Nf3 {[%clk
00:03:02]} {[%emt 00:00:02]} Nc6 {[%clk 00:03:05]} 3. Nc3 {[%clk 00:03:03]}
{[%emt 00:00:01]} Nf6 {[%clk 00:03:06]} {[%emt 00:00:01]} 4. Bb5 {[%clk
00:03:03]} {[%emt 00:00:01]} Bc5 {[%clk 00:03:06]} {[%emt 00:00:02]} 5. O-O
{[%clk 00:02:57]} {[%emt 00:00:08]} O-O {[%clk 00:03:02]} {[%emt 00:00:07]} 6.
Nxe5 {[%clk 00:02:55]} {[%emt 00:00:04]} Nxe5 {[%clk 00:03:00]} {[%emt
00:00:04]} 7. d4 {[%clk 00:02:55]} {[%emt 00:00:02]} Bxd4 {[%clk 00:02:42]}
{[%emt 00:00:20]} 8. Qxd4 {[%clk 00:02:54]} {[%emt 00:00:03]} Nc6 {[%clk
00:02:43]} {[%emt 00:00:01]} 9. Bxc6 {[%clk 00:02:29]} {[%emt 00:00:27]} dxc6
{[%clk 00:02:44]} {[%emt 00:00:01]} 10. Qxd8 {[%clk 00:02:25]} {[%emt
00:00:06]} Rxd8 {[%clk 00:02:45]} {[%emt 00:00:01]} 11. Bg5 {[%clk 00:02:26]}
{[%emt 00:00:01]} Re8 {[%clk 00:02:43]} {[%emt 00:00:04]} 12. Bxf6 {[%clk
00:02:25]} {[%emt 00:00:03]} gxf6 {[%clk 00:02:44]} {[%emt 00:00:01]} 13. Rfe1
{[%clk 00:02:20]} {[%emt 00:00:07]} Be6 {[%clk 00:02:40]} {[%emt 00:00:06]} 14.
Rad1 {[%clk 00:02:14]} {[%emt 00:00:08]} Rad8 {[%clk 00:02:39]} {[%emt
00:00:03]} 15. a3 {[%clk 00:01:59]} {[%emt 00:00:17]} c5 {[%clk 00:02:32]}
{[%emt 00:00:09]} 16. f3 {[%clk 00:01:54]} {[%emt 00:00:07]} c6 {[%clk
00:02:30]} {[%emt 00:00:05]} 17. Rxd8 {[%clk 00:01:53]} {[%emt 00:00:03]} Rxd8
{[%clk 00:02:32]} 18. Rd1 {[%clk 00:01:54]} Re8 {[%clk 00:02:27]} {[%emt
00:00:07]} 19. g4 {[%clk 00:01:52]} {[%emt 00:00:04]} Kf8 {[%clk 00:02:28]}
{[%emt 00:00:01]} 20. Kf2 {[%clk 00:01:52]} {[%emt 00:00:02]} Ke7 {[%clk
00:02:29]} {[%emt 00:00:01]} 21. Ne2 {[%clk 00:01:34]} {[%emt 00:00:19]} b5
{[%clk 00:02:20]} {[%emt 00:00:11]} 22. Ke3 {[%clk 00:00:59]} {[%emt 00:00:37]}
a5 {[%clk 00:02:19]} {[%emt 00:00:04]} 23. Nf4 {[%clk 00:00:57]} {[%emt
00:00:04]} Rb8 {[%clk 00:02:13]} {[%emt 00:00:08]} 24. Nd3 {[%clk 00:00:51]}
{[%emt 00:00:08]} c4 {[%clk 00:02:14]} 25. Nc5 {[%clk 00:00:49]} {[%emt
00:00:04]} a4 {[%clk 00:02:06]} {[%emt 00:00:11]} 26. c3 {[%clk 00:00:43]}
{[%emt 00:00:08]} h5 {[%clk 00:02:02]} {[%emt 00:00:06]} 27. gxh5 {[%clk
00:00:28]} {[%emt 00:00:17]} Rh8 {[%clk 00:02:04]} 28. Nxe6 {[%clk 00:00:26]}
{[%emt 00:00:04]} fxe6 {[%clk 00:02:04]} {[%emt 00:00:01]} 29. h4 {[%clk
00:00:25]} {[%emt 00:00:04]} Rxh5 {[%clk 00:02:05]} 30. Rh1 {[%clk 00:00:25]}
e5 {[%clk 00:01:54]} {[%emt 00:00:14]} 31. f4 {[%clk 00:00:20]} {[%emt
00:00:07]} c5 {[%clk 00:01:51]} {[%emt 00:00:06]} 32. f5 {[%clk 00:00:19]}
{[%emt 00:00:03]} Kf7 {[%clk 00:01:43]} {[%emt 00:00:10]} 33. Kf3 {[%clk
00:00:18]} {[%emt 00:00:03]} Rh8 {[%clk 00:01:44]} {[%emt 00:00:01]} 34. h5
{[%clk 00:00:13]} {[%emt 00:00:06]} Rd8 {[%clk 00:01:39]} {[%emt 00:00:08]} 35.
h6 {[%clk 00:00:09]} {[%emt 00:00:06]} Kg8 {[%clk 00:01:40]} 36. Rg1+ {[%clk
00:00:05]} {[%emt 00:00:06]} Kh7 {[%clk 00:01:41]} 37. Rg6 {[%clk 00:00:05]}
{[%emt 00:00:02]} Rd3+ {[%clk 00:01:37]} {[%emt 00:00:06]} 38. Ke2 {[%clk
00:00:05]} {[%emt 00:00:02]} Rd6 {[%clk 00:01:37]} {[%emt 00:00:02]} 39. Ke3
{[%clk 00:00:06]} {[%emt 00:00:02]} Rb6 {[%clk 00:01:34]} {[%emt 00:00:05]} 40.
Rg7+ {[%clk 00:00:04]} {[%emt 00:00:04]} Kxh6 {[%clk 00:01:33]} {[%emt
00:00:03]} 41. Rc7 {[%clk 00:00:05]} {[%emt 00:00:01]} b4 {[%clk 00:01:34]} 42.
Rxc5 {[%clk 00:00:06]} bxa3 {[%clk 00:01:32]} {[%emt 00:00:03]} 43. bxa3 {[%clk
00:00:07]} Rb3 {[%clk 00:01:33]} {[%emt 00:00:01]} 44. Rxc4 {[%clk 00:00:08]}
Rxa3 {[%clk 00:01:34]} 45. Rc6 {[%clk 00:00:06]} {[%emt 00:00:04]} Kg5 {[%clk
00:01:35]} {[%emt 00:00:01]} 46. Kd3 {[%clk 00:00:07]} {[%emt 00:00:02]} Ra2
{[%clk 00:01:33]} {[%emt 00:00:03]} 47. Ra6 {[%clk 00:00:08]} {[%emt 00:00:02]}
a3 {[%clk 00:01:33]} {[%emt 00:00:03]} 48. c4 {[%clk 00:00:08]} Ra1 {[%clk
00:01:33]} {[%emt 00:00:02]} 49. c5 {[%clk 00:00:08]} {[%emt 00:00:03]} Rc1
{[%clk 00:01:27]} {[%emt 00:00:07]} 50. Rxa3 {[%clk 00:00:08]} {[%emt
00:00:02]} Rxc5 {[%clk 00:01:28]} {[%emt 00:00:01]} 51. Ke3 {[%clk 00:00:10]}
Kg4 {[%clk 00:01:22]} {[%emt 00:00:08]} 52. Ra6 {[%clk 00:00:10]} {[%emt
00:00:02]} Rc3+ {[%clk 00:01:23]} 53. Ke2 {[%clk 00:00:10]} Kf4 {[%clk
00:01:23]} {[%emt 00:00:02]} 54. Rxf6 {[%clk 00:00:11]} Kxe4 {[%clk 00:01:24]}
{[%emt 00:00:01]} 55. Rf8 {[%clk 00:00:10]} {[%emt 00:00:03]} Rc2+ {[%clk
00:01:25]} {[%emt 00:00:01]} 56. Kd1 {[%clk 00:00:11]} {[%emt 00:00:01]} Rf2
{[%clk 00:01:25]} {[%emt 00:00:01]} 57. f6 {[%clk 00:00:12]} {[%emt 00:00:01]}
Ke3 {[%clk 00:01:22]} {[%emt 00:00:05]} 58. f7 {[%clk 00:00:12]} {[%emt
00:00:02]} e4 {[%clk 00:01:23]} {[%emt 00:00:02]} 59. Ke1 {[%clk 00:00:07]}
{[%emt 00:00:07]} Rh2 {[%clk 00:01:15]} {[%emt 00:00:10]} 60. Kf1 {[%clk
00:00:08]} {[%emt 00:00:01]} Rh7 {[%clk 00:01:11]} {[%emt 00:00:05]} 61. Kg2
{[%clk 00:00:06]} {[%emt 00:00:05]} Rg7+ {[%clk 00:01:12]} 62. Kf1 {[%clk
00:00:07]} {[%emt 00:00:01]} Kf3 {[%clk 00:01:12]} {[%emt 00:00:03]} 63. Ke1
{[%clk 00:00:04]} {[%emt 00:00:05]} e3 {[%clk 00:01:12]} {[%emt 00:00:02]} 64.
Kd1 {[%clk 00:00:03]} {[%emt 00:00:04]} Kf2 {[%clk 00:01:08]} {[%emt 00:00:05]}
65. Re8 {[%clk 00:00:03]} {[%emt 00:00:03]} Rxf7 {[%clk 00:01:08]} {[%emt
00:00:01]} 66. Re6 {[%clk 00:00:03]} {[%emt 00:00:02]} Rd7+ {[%clk 00:01:06]}
{[%emt 00:00:04]} 67. Kc2 {[%clk 00:00:04]} e2 {[%clk 00:01:07]} 68. Rf6 {[%clk
00:00:05]} {[%emt 00:00:01]} Ke1 {[%clk 00:01:08]} 69. Rf8 {[%clk 00:00:06]}
Rd5 {[%clk 00:01:05]} {[%emt 00:00:05]} 0-1

[Event "UK Open Blitz Championships 2024 - London Qualifier"]
[Site "London, United Kingdom"]
[Date "2024.09.21"]
[Round "8.2"]
[White "Badacsonyi, Stanley"]
[Black "Ghasi, Ameet K"]
[Result "0-1"]
[TimeControl "3 minutes + 2 seconds incr. from move 1"]
[WhiteTitle "FM"]
[BlackTitle "IM"]
[WhiteFideId "486973"]
[BlackFideId "409200"]
[WhiteElo "2332"]
[BlackElo "2524"]

1. d4 {[%clk 00:03:03]} {[%emt 00:00:02]} Nf6 {[%clk 00:03:02]} 2. Bg5 {[%clk
00:03:04]} {[%emt 00:00:01]} g6 {[%clk 00:03:01]} {[%emt 00:00:02]} 3. Bxf6
{[%clk 00:03:05]} exf6 {[%clk 00:03:02]} {[%emt 00:00:01]} 4. c4 {[%clk
00:03:06]} d5 {[%clk 00:03:03]} {[%emt 00:00:02]} 5. cxd5 {[%clk 00:03:07]}
{[%emt 00:00:01]} Qxd5 {[%clk 00:03:04]} 6. Nc3 {[%clk 00:03:08]} {[%emt
00:00:01]} Qd8 {[%clk 00:03:03]} {[%emt 00:00:02]} 7. e3 {[%clk 00:03:06]}
{[%emt 00:00:05]} Bg7 {[%clk 00:03:00]} {[%emt 00:00:06]} 8. h4 {[%clk
00:03:07]} {[%emt 00:00:01]} h5 {[%clk 00:03:00]} {[%emt 00:00:01]} 9. Bc4
{[%clk 00:03:07]} {[%emt 00:00:02]} O-O {[%clk 00:02:43]} {[%emt 00:00:19]} 10.
Nge2 {[%clk 00:03:08]} {[%emt 00:00:01]} Nc6 {[%clk 00:02:32]} {[%emt
00:00:13]} 11. Nf4 {[%clk 00:03:06]} {[%emt 00:00:04]} Na5 {[%clk 00:02:29]}
{[%emt 00:00:05]} 12. Bd3 {[%clk 00:02:33]} {[%emt 00:00:34]} f5 {[%clk
00:02:30]} {[%emt 00:00:01]} 13. Rc1 {[%clk 00:02:32]} {[%emt 00:00:04]} Re8
{[%clk 00:02:19]} {[%emt 00:00:14]} 14. Kf1 {[%clk 00:02:28]} {[%emt 00:00:05]}
a6 {[%clk 00:02:01]} {[%emt 00:00:19]} 15. b4 {[%clk 00:02:29]} {[%emt
00:00:01]} Nc6 {[%clk 00:02:03]} 16. Bc4 {[%clk 00:02:30]} Qd6 {[%clk
00:01:50]} {[%emt 00:00:14]} 17. a3 {[%clk 00:02:24]} {[%emt 00:00:08]} Bh6
{[%clk 00:01:29]} {[%emt 00:00:23]} 18. Ncd5 {[%clk 00:02:08]} {[%emt
00:00:17]} Bd7 {[%clk 00:00:22]} {[%emt 00:01:09]} 19. Rh3 {[%clk 00:01:59]}
{[%emt 00:00:11]} Kf8 {[%clk 00:00:15]} {[%emt 00:00:09]} 20. Bb3 {[%clk
00:01:45]} {[%emt 00:00:16]} Re4 {[%clk 00:00:16]} {[%emt 00:00:02]} 21. Rf3
{[%clk 00:01:16]} {[%emt 00:00:30]} Rd8 {[%clk 00:00:17]} 22. g3 {[%clk
00:00:55]} {[%emt 00:00:23]} Ree8 {[%clk 00:00:18]} {[%emt 00:00:01]} 23. Nd3
{[%clk 00:00:42]} {[%emt 00:00:15]} Be6 {[%clk 00:00:17]} {[%emt 00:00:03]} 24.
N5f4 {[%clk 00:00:40]} {[%emt 00:00:04]} Bc8 {[%clk 00:00:16]} {[%emt
00:00:04]} 25. Nc5 {[%clk 00:00:39]} {[%emt 00:00:03]} Ne7 {[%clk 00:00:12]}
{[%emt 00:00:06]} 26. e4 {[%clk 00:00:37]} {[%emt 00:00:04]} Qxd4 {[%clk
00:00:09]} {[%emt 00:00:05]} 27. Qc2 {[%clk 00:00:33]} {[%emt 00:00:05]} c6
{[%clk 00:00:06]} {[%emt 00:00:05]} 28. Rd1 {[%clk 00:00:30]} {[%emt 00:00:05]}
Qf6 {[%clk 00:00:07]} 29. Rxd8 {[%clk 00:00:30]} {[%emt 00:00:02]} Rxd8 {[%clk
00:00:08]} 30. exf5 {[%clk 00:00:24]} {[%emt 00:00:09]} Bxf5 {[%clk 00:00:09]}
31. Qc4 {[%clk 00:00:24]} {[%emt 00:00:02]} Bxf4 {[%clk 00:00:08]} {[%emt
00:00:03]} 32. Qxf4 {[%clk 00:00:23]} {[%emt 00:00:04]} Nd5 {[%clk 00:00:08]}
{[%emt 00:00:02]} 33. Qh6+ {[%clk 00:00:24]} {[%emt 00:00:01]} Kg8 {[%clk
00:00:10]} 34. Kg2 {[%clk 00:00:16]} {[%emt 00:00:10]} Bh3+ {[%clk 00:00:10]}
{[%emt 00:00:01]} 35. Kxh3 {[%clk 00:00:17]} Qxf3 {[%clk 00:00:11]} {[%emt
00:00:01]} 36. Kh2 {[%clk 00:00:16]} {[%emt 00:00:03]} Qxf2+ {[%clk 00:00:12]}
37. Kh3 {[%clk 00:00:18]} Qf1+ {[%clk 00:00:13]} {[%emt 00:00:01]} 38. Kh2
{[%clk 00:00:19]} {[%emt 00:00:01]} Qe2+ {[%clk 00:00:13]} {[%emt 00:00:02]} 39.
Kh3 {[%clk 00:00:20]} {[%emt 00:00:01]} Re8 {[%clk 00:00:12]} {[%emt 00:00:03]}
40. Nd7 {[%clk 00:00:19]} {[%emt 00:00:04]} Qg4+ {[%clk 00:00:13]} 0-1

[Event "UK Open Blitz Championships 2024 - London Qualifier"]
[Site "London, United Kingdom"]
[Date "2024.09.21"]
[Round "8.3"]
[White "Gasanov, Eldar"]
[Black "Korshunov, Sergey"]
[Result "1/2-1/2"]
[TimeControl "3 minutes + 2 seconds incr. from move 1"]
[WhiteTitle "GM"]
[BlackTitle "FM"]
[WhiteFideId "14104466"]
[BlackFideId "34274715"]
[WhiteElo "2467"]
[BlackElo "2278"]

1. d4 {[%clk 00:03:03]} Nf6 {[%clk 00:03:03]} {[%emt 00:00:02]} 2. c4 {[%clk
00:03:04]} e6 {[%clk 00:03:04]} {[%emt 00:00:01]} 3. Bg5 {[%clk 00:03:04]} d5
{[%clk 00:03:03]} {[%emt 00:00:03]} 4. e3 {[%clk 00:03:03]} {[%emt 00:00:03]}
Be7 {[%clk 00:03:02]} {[%emt 00:00:03]} 5. Nc3 {[%clk 00:03:03]} {[%emt
00:00:02]} O-O {[%clk 00:03:00]} {[%emt 00:00:04]} 6. Nf3 {[%clk 00:03:00]}
{[%emt 00:00:05]} h6 {[%clk 00:03:00]} {[%emt 00:00:01]} 7. Bh4 {[%clk
00:03:00]} {[%emt 00:00:02]} b6 {[%clk 00:03:01]} {[%emt 00:00:02]} 8. Qc2
{[%clk 00:02:58]} {[%emt 00:00:04]} Bb7 {[%clk 00:02:58]} {[%emt 00:00:06]} 9.
Bxf6 {[%clk 00:02:58]} {[%emt 00:00:02]} Bxf6 {[%clk 00:02:59]} {[%emt
00:00:01]} 10. cxd5 {[%clk 00:02:59]} {[%emt 00:00:01]} exd5 {[%clk 00:02:59]}
{[%emt 00:00:02]} 11. Rd1 {[%clk 00:02:59]} c6 {[%clk 00:02:51]} {[%emt
00:00:10]} 12. g3 {[%clk 00:02:59]} {[%emt 00:00:02]} Re8 {[%clk 00:02:50]}
{[%emt 00:00:03]} 13. Bg2 {[%clk 00:02:56]} {[%emt 00:00:05]} Na6 {[%clk
00:02:34]} {[%emt 00:00:19]} 14. O-O {[%clk 00:02:52]} {[%emt 00:00:05]} Nc7
{[%clk 00:02:35]} {[%emt 00:00:02]} 15. Rd2 {[%clk 00:02:42]} {[%emt 00:00:12]}
Be7 {[%clk 00:02:30]} {[%emt 00:00:06]} 16. Rfd1 {[%clk 00:02:18]} {[%emt
00:00:26]} Bd6 {[%clk 00:02:28]} {[%emt 00:00:05]} 17. a3 {[%clk 00:02:14]}
{[%emt 00:00:06]} Qe7 {[%clk 00:01:58]} {[%emt 00:00:32]} 18. Ne2 {[%clk
00:02:01]} {[%emt 00:00:15]} Ne6 {[%clk 00:01:51]} {[%emt 00:00:09]} 19. h4
{[%clk 00:01:37]} {[%emt 00:00:26]} Rac8 {[%clk 00:01:52]} {[%emt 00:00:01]} 20.
Qb1 {[%clk 00:01:29]} {[%emt 00:00:09]} c5 {[%clk 00:01:14]} {[%emt 00:00:41]}
21. dxc5 {[%clk 00:01:20]} {[%emt 00:00:11]} Nxc5 {[%clk 00:01:14]} 22. Nc3
{[%clk 00:01:15]} {[%emt 00:00:07]} Ne4 {[%clk 00:01:09]} {[%emt 00:00:08]} 23.
Nxe4 {[%clk 00:00:56]} {[%emt 00:00:20]} dxe4 {[%clk 00:01:09]} {[%emt
00:00:02]} 24. Rxd6 {[%clk 00:00:36]} {[%emt 00:00:22]} exf3 {[%clk 00:01:10]}
25. Rd7 {[%clk 00:00:37]} {[%emt 00:00:01]} Qe4 {[%clk 00:00:59]} {[%emt
00:00:13]} 26. Qxe4 {[%clk 00:00:29]} {[%emt 00:00:09]} Bxe4 {[%clk 00:01:00]}
{[%emt 00:00:01]} 27. Bh3 {[%clk 00:00:26]} {[%emt 00:00:05]} Rc2 {[%clk
00:00:58]} {[%emt 00:00:04]} 28. R7d2 {[%clk 00:00:22]} {[%emt 00:00:06]} Rxd2
{[%clk 00:00:46]} {[%emt 00:00:14]} 29. Rxd2 {[%clk 00:00:23]} f5 {[%clk
00:00:47]} 30. g4 {[%clk 00:00:22]} {[%emt 00:00:03]} g6 {[%clk 00:00:42]}
{[%emt 00:00:07]} 31. Kh2 {[%clk 00:00:20]} {[%emt 00:00:04]} Rc8 {[%clk
00:00:36]} {[%emt 00:00:08]} 32. h5 {[%clk 00:00:14]} {[%emt 00:00:08]} gxh5
{[%clk 00:00:18]} {[%emt 00:00:20]} 33. gxf5 {[%clk 00:00:14]} {[%emt
00:00:02]} h4 {[%clk 00:00:20]} 34. Rd4 {[%clk 00:00:15]} {[%emt 00:00:02]} Re8
{[%clk 00:00:21]} 35. Bf1 {[%clk 00:00:09]} {[%emt 00:00:07]} Bxf5 {[%clk
00:00:19]} {[%emt 00:00:04]} 36. Rxh4 {[%clk 00:00:09]} {[%emt 00:00:02]} Kg7
{[%clk 00:00:20]} {[%emt 00:00:02]} 37. Rf4 {[%clk 00:00:10]} Be4 {[%clk
00:00:19]} {[%emt 00:00:03]} 38. Bb5 {[%clk 00:00:11]} {[%emt 00:00:01]} Re5
{[%clk 00:00:20]} {[%emt 00:00:01]} 39. Bd7 {[%clk 00:00:12]} {[%emt 00:00:02]}
Bb7 {[%clk 00:00:19]} {[%emt 00:00:02]} 40. Bg4 {[%clk 00:00:13]} {[%emt
00:00:01]} Rc5 {[%clk 00:00:20]} {[%emt 00:00:02]} 41. Bxf3 {[%clk 00:00:13]}
{[%emt 00:00:01]} Bxf3 {[%clk 00:00:20]} {[%emt 00:00:02]} 42. Rxf3 {[%clk
00:00:15]} Rc2 {[%clk 00:00:22]} {[%emt 00:00:01]} 43. b4 {[%clk 00:00:15]}
{[%emt 00:00:01]} Rc3 {[%clk 00:00:23]} 44. a4 {[%emt 00:00:03]} Ra3 {[%clk
00:00:23]} 45. a5 {[%clk 00:00:17]} {[%emt 00:00:02]} bxa5 {[%clk 00:00:24]} 46.
bxa5 {[%clk 00:00:18]} Rxa5 {[%clk 00:00:25]} 47. Rf4 {[%clk 00:00:18]} {[%emt
00:00:01]} Ra1 {[%clk 00:00:24]} {[%emt 00:00:03]} 48. Kg3 {[%clk 00:00:19]}
{[%emt 00:00:01]} a5 {[%clk 00:00:26]} 49. Rc4 {[%clk 00:00:19]} {[%emt
00:00:01]} a4 {[%clk 00:00:25]} {[%emt 00:00:03]} 50. Rc6 {[%clk 00:00:17]}
{[%emt 00:00:03]} a3 {[%clk 00:00:26]} {[%emt 00:00:02]} 51. Ra6 {[%clk
00:00:18]} h5 {[%clk 00:00:24]} {[%emt 00:00:04]} 52. Kg2 {[%clk 00:00:13]}
{[%emt 00:00:07]} Kf7 {[%clk 00:00:15]} {[%emt 00:00:12]} 53. f4 {[%clk
00:00:13]} {[%emt 00:00:01]} a2 {[%clk 00:00:15]} {[%emt 00:00:02]} 54. f5
{[%emt 00:00:06]} Re1 {[%clk 00:00:13]} 55. Rxa2 {[%clk 00:00:12]} {[%emt
00:00:03]} Rxe3 {[%clk 00:00:14]} {[%emt 00:00:01]} 1/2-1/2

[Event "UK Open Blitz Championships 2024 - London Qualifier"]
[Site "London, United Kingdom"]
[Date "2024.09.21"]
[Round "8.4"]
[White "Roberson, Peter T"]
[Black "Yoon, Jacob D"]
[Result "1-0"]
[TimeControl "3 minutes + 2 seconds incr. from move 1"]
[WhiteTitle "IM"]
[BlackTitle "CM"]
[WhiteFideId "412384"]
[BlackFideId "446076"]
[WhiteElo "2346"]
[BlackElo "1921"]

1. e4 {[%clk 00:03:04]} {[%emt 00:00:48]} c6 {[%clk 00:03:03]} {[%emt
00:00:01]} 2. d4 {[%clk 00:03:04]} d5 {[%clk 00:03:05]} 3. e5 {[%clk 00:03:06]}
c5 {[%clk 00:03:06]} 4. dxc5 {[%clk 00:03:07]} e6 {[%clk 00:03:07]} 5. c3
{[%clk 00:03:08]} Nc6 {[%clk 00:02:52]} {[%emt 00:00:17]} 6. Nf3 {[%clk
00:03:04]} {[%emt 00:00:06]} Bxc5 {[%clk 00:02:32]} {[%emt 00:00:22]} 7. b4
{[%clk 00:03:05]} Be7 {[%clk 00:02:30]} {[%emt 00:00:03]} 8. b5 {[%clk
00:03:05]} {[%emt 00:00:05]} Na5 {[%clk 00:02:18]} {[%emt 00:00:14]} 9. Bd3
{[%clk 00:03:06]} Qc7 {[%clk 00:02:07]} {[%emt 00:00:13]} 10. O-O {[%clk
00:03:03]} {[%emt 00:00:05]} Nc4 {[%clk 00:02:08]} {[%emt 00:00:01]} 11. Qe2
{[%clk 00:02:56]} {[%emt 00:00:09]} Bd7 {[%clk 00:02:07]} {[%emt 00:00:03]} 12.
a4 {[%clk 00:02:57]} {[%emt 00:00:01]} Rc8 {[%clk 00:01:35]} {[%emt 00:00:34]}
13. Nbd2 {[%clk 00:02:49]} {[%emt 00:00:10]} f5 {[%clk 00:01:26]} {[%emt
00:00:11]} 14. Bxc4 {[%clk 00:01:58]} {[%emt 00:00:53]} dxc4 {[%clk 00:01:26]}
{[%emt 00:00:02]} 15. Nd4 {[%clk 00:01:58]} {[%emt 00:00:02]} Nh6 {[%clk
00:01:14]} {[%emt 00:00:14]} 16. N2f3 {[%clk 00:01:42]} {[%emt 00:00:18]} Nf7
{[%clk 00:01:15]} 17. Ba3 {[%clk 00:01:43]} {[%emt 00:00:02]} Bxa3 {[%clk
00:01:04]} {[%emt 00:00:13]} 18. Rxa3 {[%clk 00:01:43]} g5 {[%clk 00:01:06]} 19.
Re1 {[%clk 00:01:34]} {[%emt 00:00:12]} g4 {[%clk 00:00:43]} {[%emt 00:00:25]}
20. Nd2 {[%clk 00:01:32]} {[%emt 00:00:04]} h5 {[%clk 00:00:24]} {[%emt
00:00:22]} 21. Nxf5 {[%clk 00:01:28]} {[%emt 00:00:05]} exf5 {[%clk 00:00:15]}
{[%emt 00:00:11]} 22. e6 {[%clk 00:01:29]} Kf8 {[%clk 00:00:13]} {[%emt
00:00:04]} 23. exf7 {[%clk 00:01:22]} {[%emt 00:00:09]} Qc5 {[%clk 00:00:12]}
{[%emt 00:00:03]} 24. Nxc4 {[%clk 00:01:10]} {[%emt 00:00:14]} Kxf7 {[%clk
00:00:04]} {[%emt 00:00:11]} 25. Ne5+ {[%clk 00:01:05]} {[%emt 00:00:07]} Kg7
{[%clk 00:00:05]} 26. Nxd7 {[%clk 00:00:55]} {[%emt 00:00:12]} Qxa3 {[%clk
00:00:06]} 27. Qe5+ {[%clk 00:00:57]} Kh6 {[%clk 00:00:04]} {[%emt 00:00:05]}
28. Qf6+ {[%clk 00:00:53]} {[%emt 00:00:06]} Kh7 {[%clk 00:00:05]} 29. Qf7+
{[%clk 00:00:53]} {[%emt 00:00:02]} Kh6 {[%clk 00:00:05]} {[%emt 00:00:02]} 30.
Re6+ {[%clk 00:00:36]} {[%emt 00:00:19]} Kg5 {[%clk 00:00:06]} 31. h4+ {[%clk
00:00:32]} {[%emt 00:00:05]} gxh3 {[%clk 00:00:03]} {[%emt 00:00:05]} 32. Qg7+
{[%clk 00:00:31]} {[%emt 00:00:04]} Kf4 {[%clk 00:00:03]} {[%emt 00:00:02]} 33.
Qg3# {[%clk 00:00:32]} {[%emt 00:00:02]} 1-0